bitfinex/quotes_SOLUSD_20250129
["timestamp","ask_amount","ask_price","bid_price","bid_amount"]
[1738140448725,0.03,234.63,234.61,6.69891665]
[1738140450913,0.03,234.63,234.61,10.96121665]
[1738140451833,0.03,234.63,234.61,6.69891665]
[1738140452211,0.03,234.63,234.59,6.69891665]
[1738140453523,0.03,234.63,234.57,6.76191665]
[1738140453700,6.72891665,234.63,234.57,0.063]
[1738140454835,4.2622,234.62,234.57,0.063]
[1738140458532,0.03,234.63,234.57,11.02491665]
[1738140458739,0.03,234.63,234.61,6.69891665]
[1738140462029,0.03,234.63,234.61,10.96121665]
[1738140463934,0.03,234.63,234.61,6.69891665]
[1738140465528,0.03,234.63,234.59,23.839884]
[1738140465529,0.03,234.63,234.59,30.53880065]
[1738140468649,0.03,234.63,234.59,6.76191665]
[1738140473850,0.03,234.63,234.59,0.063]
[1738140474250,6.72891665,234.63,234.59,0.063]
[1738140475860,0.03,234.63,234.59,0.063]
[1738140477349,0.03,234.63,234.62,23.776884]
[1738140477751,0.03,234.63,234.62,6.69891665]
[1738140478430,0.03,234.63,234.62,10.96111665]
[1738140496384,6.72891665,234.63,234.59,0.063]
[1738140496550,6.69891665,234.6,234.59,0.063]
[1738140497148,82.5,234.61,234.59,0.063]
[1738140497477,6.69891665,234.6,234.59,0.063]
[1738140498281,10.96141665,234.6,234.59,0.063]
[1738140500762,10.99141665,234.6,234.59,0.063]
[1738140502377,40.7929627,234.6,234.59,0.063]
[1738140502683,21.0,234.56,234.55,0.063]
[1738140502977,27.69891665,234.56,234.55,0.063]
[1738140504484,31.96221665,234.56,234.55,0.063]
[1738140504676,30.96221665,234.56,234.55,0.063]
[1738140504876,10.96221665,234.56,234.55,0.063]
[1738140508381,86.7633,234.56,234.55,0.063]
[1738140510993,93.46221665,234.56,234.55,0.063]
[1738140513091,10.96221665,234.56,234.55,0.063]
[1738140520408,6.69891665,234.56,234.55,0.063]
[1738140520610,4.2631,234.58,234.55,0.063]
[1738140521490,10.96201665,234.58,234.55,0.063]
[1738140524701,6.69891665,234.56,234.55,0.063]
[1738140526014,10.96221665,234.56,234.55,0.063]
[1738140529022,6.72891665,234.6,234.55,0.063]
[1738140529225,0.03,234.6,234.55,0.063]
[1738140539539,0.03,234.6,234.55,34.80220065]
[1738140539825,0.03,234.6,234.59,6.69891665]
[1738140541037,0.03,234.6,234.59,34.73850065]
[1738140547641,0.03,234.6,234.59,117.83850065]
[1738140554759,0.03,234.6,234.59,89.79891665]
[1738140555053,0.03,234.6,234.59,6.69891665]
[1738140558162,0.03,234.6,234.57,6.76191665]
[1738140559462,0.03,234.6,234.57,0.063]
[1738140559855,6.72891665,234.6,234.57,0.063]
[1738140560052,6.69891665,234.58,234.57,0.063]
[1738140561766,10.96181665,234.58,234.57,0.063]
[1738140564553,11.96181665,234.58,234.57,0.063]
[1738140564871,13.3892961,234.58,234.57,0.063]
[1738140567175,12.3892961,234.58,234.57,0.063]
[1738140567390,11.96181665,234.58,234.57,0.063]
[1738140570275,12.96181665,234.58,234.57,0.063]
[1738140571182,10.96181665,234.58,234.57,0.063]
[1738140573270,4.2629,234.58,234.57,0.063]
[1738140574290,6.72891665,234.6,234.57,0.063]
[1738140574604,4.2627,234.59,234.57,0.063]
[1738140576980,4.2926,234.6,234.57,0.063]
[1738140578496,0.03,234.6,234.57,0.063]
[1738140581494,0.03,234.6,234.59,30.47580065]
[1738140585315,0.03,234.6,234.59,34.73850065]
[1738140590341,0.03,234.6,234.57,0.063]
[1738140593233,6.69891665,234.59,234.57,0.063]
[1738140593532,82.5,234.58,234.57,0.063]
[1738140593717,6.69891665,234.59,234.57,0.063]
[1738140594027,7.1263961,234.59,234.57,0.063]
[1738140594411,6.69891665,234.59,234.57,0.063]
[1738140594621,4.2629,234.58,234.57,0.063]
[1738140596707,6.69891665,234.59,234.57,0.063]
[1738140597100,10.96171665,234.59,234.57,0.063]
[1738140599921,11.96171665,234.59,234.57,0.063]
[1738140600627,11.96171665,234.59,234.57,0.0001]
[1738140600808,12.96171665,234.59,234.57,0.0001]
[1738140601322,11.96171665,234.59,234.57,0.0001]
[1738140603329,1.0,234.58,234.57,0.0001]
[1738140603631,5.2629,234.58,234.57,0.0001]
[1738140604739,6.69891665,234.46,234.42,0.063]
[1738140604909,6.69891665,234.44,234.42,0.063]
[1738140605441,10.96451665,234.44,234.42,0.063]
[1738140605640,82.5,234.43,234.42,0.063]
[1738140607210,10.96441665,234.44,234.42,0.063]
[1738140607428,1.42747945,234.43,234.42,0.063]
[1738140608018,5.69307945,234.43,234.42,0.063]
[1738140609336,4.69307945,234.43,234.42,0.063]
[1738140610238,4.2656,234.43,234.42,0.063]
[1738140610819,4.2653,234.45,234.42,0.063]
[1738140612557,6.69891665,234.46,234.42,0.063]
[1738140613043,10.96401665,234.46,234.42,0.063]
[1738140614238,6.69891665,234.5,234.43,6.69891665]
[1738140614422,6.69891665,234.5,234.43,8.26581665]
[1738140614610,6.69891665,234.5,234.43,12.53131665]
[1738140614811,6.69891665,234.48,234.43,1.5669]
[1738140615832,6.69891665,234.48,234.42,0.063]
[1738140616952,4.2649,234.47,234.42,0.063]
[1738140620060,86.7649,234.47,234.42,0.063]
[1738140623264,82.5,234.47,234.42,28.105684]
[1738140623438,82.5,234.47,234.43,6.69891665]
[1738140624356,82.5,234.47,234.42,23.839884]
[1738140625455,82.5,234.47,234.42,28.105684]
[1738140626057,4.2645,234.49,234.42,28.105684]
[1738140627058,4.2645,234.49,234.42,4.3288]
[1738140627758,4.2645,234.49,234.42,0.063]
[1738140628054,6.69891665,234.48,234.43,0.063]
[1738140630259,10.96371665,234.48,234.43,0.063]
[1738140633053,6.69891665,234.46,234.43,0.063]
[1738140634659,10.96401665,234.46,234.43,0.063]
[1738140642678,6.69891665,234.44,234.43,0.063]
[1738140642974,6.69891665,234.44,234.42,0.063]
[1738140642975,7.1263961,234.44,234.42,0.063]
[1738140643873,4.2656,234.43,234.42,0.063]
[1738140647073,20.0,234.4,234.36,0.063]
[1738140647269,6.69891665,234.37,234.36,0.063]
[1738140649080,10.96561665,234.37,234.36,0.063]
[1738140651671,34.74250065,234.37,234.36,0.0001]
[1738140651876,20.0,234.34,234.31,0.063]
[1738140652176,6.69891665,234.32,234.31,0.063]
[1738140652659,7.1263961,234.32,234.31,0.063]
[1738140653877,11.3939961,234.32,234.31,0.063]
[1738140661585,6.69891665,234.35,234.31,0.063]
[1738140661790,10.96601665,234.35,234.31,0.063]
[1738140662716,6.69891665,234.33,234.31,0.063]
[1738140663578,4.2676,234.32,234.31,0.063]
[1738140670504,86.7676,234.32,234.31,0.063]
[1738140676592,4.2676,234.32,234.31,0.063]
[1738140678211,82.5,234.34,234.31,0.063]
[1738140679187,0.03,234.35,234.31,0.063]
[1738140679393,0.03,234.35,234.31,34.80660065]
[1738140679623,0.03,234.35,234.32,6.69891665]
[1738140680694,0.03,234.35,234.31,34.80660065]
[1738140686914,0.03,234.35,234.31,0.063]
[1738140687114,6.69891665,234.34,234.31,0.063]
[1738140687319,6.69891665,234.32,234.31,0.063]
[1738140688030,89.19891665,234.34,234.31,0.063]
[1738140688696,4.2674,234.33,234.31,0.063]
[1738140688922,6.69891665,234.32,234.31,0.063]
[1738140689828,93.49621665,234.34,234.31,0.063]
[1738140690031,89.22891665,234.34,234.31,0.063]
[1738140690201,93.49621665,234.34,234.31,0.063]
[1738140691538,10.99621665,234.34,234.31,0.063]
[1738140693725,6.69891665,234.32,234.31,0.063]
[1738140694807,31.9032801,234.32,234.3,0.0001]
[1738140696008,4.2678,234.31,234.3,0.0001]
[1738140696225,20.0,234.28,234.27,0.063]
[1738140696423,27.1263961,234.28,234.27,0.0001]
[1738140696731,28.1263961,234.28,234.27,0.0001]
[1738140697838,20.0,234.24,234.19,0.063]
[1738140698022,6.69891665,234.2,234.19,0.063]
[1738140699933,10.96871665,234.2,234.19,0.063]
[1738140704538,35.1730801,234.2,234.19,0.0001]
[1738140704830,35.1730801,234.2,234.15,0.063]
[1738140705035,27.69891665,234.18,234.15,0.063]
[1738140705233,28.1263961,234.18,234.15,0.063]
[1738140706337,32.3965961,234.18,234.15,0.063]
[1738140706536,31.3965961,234.18,234.15,0.063]
[1738140707042,20.0,234.13,234.12,0.063]
[1738140707244,26.69891665,234.13,234.12,0.063]
[1738140707427,53.49458325,234.13,234.12,0.0001]
[1738140708243,30.97001665,234.13,234.12,0.0001]
[1738140710751,58.1931627,234.13,234.12,0.0001]
[1738140710940,31.3974961,234.13,234.12,0.0001]
[1738140711248,30.97001665,234.13,234.12,0.0001]
[1738140713325,31.3974961,234.13,234.12,0.0001]
[1738140715248,30.97001665,234.13,234.12,0.0001]
[1738140720859,58.76568325,234.13,234.12,0.0001]
[1738140721737,31.97001665,234.13,234.12,0.0001]
[1738140721955,30.97001665,234.13,234.12,0.0001]
[1738140724561,58.76568325,234.13,234.12,0.0001]
[1738140725652,57.76568325,234.13,234.12,0.0001]
[1738140727056,1.0,234.1,234.07,0.063]
[1738140727267,6.69891665,234.08,234.07,0.063]
[1738140727643,6.69891665,234.1,234.07,0.063]
[1738140728141,6.69891665,234.08,234.07,0.063]
[1738140728851,10.97091665,234.08,234.07,0.063]
[1738140729161,11.3983961,234.08,234.07,0.063]
[1738140729365,20.0,234.04,233.91,1.6211]
[1738140729560,6.69891665,233.97,233.91,1.6211]
[1738140730174,6.69891665,233.97,233.92,4.2749]
[1738140730346,6.69891665,233.99,233.92,4.2749]
[1738140730859,6.69891665,234.01,233.94,6.69891665]
[1738140732551,6.69891665,234.01,233.93,0.03]
[1738140732875,6.69891665,234.01,233.93,23.806884]
[1738140733253,10.97221665,234.01,233.93,0.03]
[1738140733564,6.69891665,233.99,233.93,0.03]
[1738140734763,10.97221665,234.01,233.94,6.69891665]
[1738140736667,6.69891665,234.03,233.94,10.97341665]
[1738140736872,6.69891665,234.03,233.96,6.69891665]
[1738140737451,6.69891665,234.01,233.93,0.03]
[1738140739370,4.2735,234.0,233.93,0.03]
[1738140739575,6.69891665,233.99,233.93,0.03]
[1738140740546,6.69891665,233.97,233.93,0.03]
[1738140741166,6.69891665,233.99,233.93,0.03]
[1738140741575,6.69891665,233.97,233.93,0.03]
[1738140741781,6.69891665,233.95,233.93,0.03]
[1738140742752,14.9584,233.98,233.93,0.03]
[1738140742753,6.69891665,233.94,233.93,0.03]
[1738140742975,6.69891665,233.95,233.93,0.03]
[1738140743150,26.69891665,233.95,233.93,0.03]
[1738140744977,4.2746,233.94,233.93,0.03]
[1738140745763,10.97351665,233.94,233.93,0.03]
[1738140748072,10.97331665,233.95,233.93,0.03]
[1738140748262,4.2744,233.95,233.93,0.03]
[1738140748461,10.97331665,233.95,233.93,0.03]
[1738140748649,6.69891665,233.94,233.93,0.03]
[1738140748978,10.97331665,233.95,233.93,0.03]
[1738140755765,6.69891665,233.94,233.93,0.03]
[1738140755960,4.2744,233.95,233.93,0.03]
[1738140757682,10.97331665,233.95,233.93,0.03]
[1738140758461,6.69891665,233.98,233.93,0.03]
[1738140758764,6.69891665,234.01,233.93,6.72891665]
[1738140759257,6.69891665,234.0,233.93,0.03]
[1738140759460,6.69891665,233.99,233.93,0.03]
[1738140759858,10.97271665,233.98,233.93,0.03]
[1738140760872,4.2738,233.98,233.93,0.03]
[1738140761990,4.2736,233.99,233.93,0.03]
[1738140762487,6.69891665,233.96,233.93,0.03]
[1738140764588,4.274,233.97,233.93,0.03]
[1738140766590,4.2738,233.99,233.93,0.03]
[1738140768893,86.7733,234.01,233.95,6.69891665]
[1738140769271,6.69891665,234.04,233.96,6.69891665]
[1738140769571,4.2725,234.05,233.98,6.69891665]
[1738140770096,6.69891665,234.04,233.96,6.69891665]
[1738140770279,6.69891665,234.02,233.96,6.69891665]
[1738140770499,6.69891665,234.02,233.94,6.69891665]
[1738140771795,10.97211665,234.02,233.94,10.97341665]
[1738140772290,6.69891665,234.0,233.93,25.455484]
[1738140772472,6.69891665,234.0,233.93,29.730184]
[1738140772673,6.69891665,234.0,233.93,1.6786]
[1738140774084,10.97161665,234.04,233.96,6.69891665]
[1738140774468,6.69891665,234.04,233.96,6.69891665]
[1738140775493,93.47151665,234.05,233.97,6.69891665]
[1738140776770,93.47151665,234.05,233.98,4.2738]
[1738140777586,10.97151665,234.05,233.98,4.2738]
[1738140779292,10.97151665,234.05,233.97,6.69891665]
[1738140780391,6.69891665,234.03,233.95,6.69891665]
[1738140780593,6.69891665,234.0,233.93,8.37751665]
[1738140780793,6.69891665,233.96,233.93,1.6786]
[1738140782382,6.69891665,233.96,233.93,0.03]
[1738140782700,4.2744,233.95,233.93,0.03]
[1738140782876,6.69891665,233.96,233.93,0.03]
[1738140783073,6.69891665,233.98,233.93,0.03]
[1738140783292,6.69891665,234.0,233.93,0.03]
[1738140783795,6.69891665,233.98,233.93,0.03]
[1738140784294,4.2734,234.01,233.93,0.03]
[1738140784295,6.69891665,233.96,233.93,0.03]
[1738140784673,10.97321665,233.96,233.93,0.03]
[1738140786599,6.69891665,233.98,233.93,0.03]
[1738140786781,10.97241665,234.0,233.93,0.03]
[1738140786983,6.69891665,233.98,233.93,0.03]
[1738140789903,10.97271665,233.98,233.93,0.03]
[1738140791106,6.69891665,233.96,233.93,0.03]
[1738140791399,6.69891665,233.95,233.93,0.03]
[1738140791601,10.97321665,233.96,233.93,0.03]
[1738140792689,6.69891665,233.94,233.93,0.03]
[1738140794203,6.69891665,233.94,233.93,0.0001]
[1738140794782,10.97351665,233.94,233.93,0.0001]
[1738140799206,6.69891665,233.95,233.93,0.0001]
[1738140800315,4.2746,233.94,233.93,0.0001]
[1738140809510,28.051484,233.94,233.93,0.0001]
[1738140809705,1.0,233.84,233.69,1.5477]
[1738140809905,6.69891665,233.77,233.7,6.69891665]
[1738140810210,6.69891665,233.79,233.72,6.69891665]
[1738140813619,6.69891665,233.79,233.72,30.47580065]
[1738140813918,6.69891665,233.8,233.72,30.47580065]
[1738140814106,6.69891665,233.8,233.74,6.69891665]
[1738140814418,6.69891665,233.82,233.74,6.69891665]
[1738140814619,10.54907748,233.82,233.74,14.82727748]
[1738140815637,10.54907748,233.84,233.77,10.54907748]
[1738140816123,10.54907748,233.84,233.75,10.54907748]
[1738140816329,10.54907748,233.81,233.74,10.54907748]
[1738140817011,10.54907748,233.79,233.72,10.54907748]
[1738140817943,10.54907748,233.76,233.71,7.9229]
[1738140818308,10.54907748,233.77,233.71,7.9229]
[1738140818710,10.54907748,233.78,233.71,7.9229]
[1738140819627,10.54907748,233.76,233.71,7.9229]
[1738140820135,10.54907748,233.78,233.71,7.9229]
[1738140820334,10.54907748,233.81,233.73,10.54907748]
[1738140820542,10.54907748,233.81,233.74,10.54907748]
[1738140821430,10.54907748,233.8,233.73,10.54907748]
[1738140822138,14.82607748,233.81,233.74,10.54907748]
[1738140822825,14.82607748,233.81,233.73,14.82737748]
[1738140823863,14.82607748,233.81,233.74,10.54907748]
[1738140824250,10.54907748,233.82,233.74,10.54907748]
[1738140824451,82.5,233.83,233.77,10.54907748]
[1738140824654,10.54907748,233.86,233.78,10.54907748]
[1738140824847,10.54907748,233.85,233.77,10.54907748]
[1738140825166,4.2756,233.88,233.75,10.54907748]
[1738140825167,10.54907748,233.83,233.75,10.54907748]
[1738140825752,10.54907748,233.81,233.74,14.82727748]
[1738140825950,10.54907748,233.83,233.74,14.82727748]
[1738140826442,14.82567748,233.83,233.74,14.82727748]
[1738140827863,14.82567748,233.83,233.74,10.54907748]
[1738140828868,14.82567748,233.83,233.74,14.82727748]
[1738140829753,14.82567748,233.83,233.74,14.85727748]
[1738140830448,10.54907748,233.85,233.76,10.54907748]
[1738140830654,10.54907748,233.83,233.74,14.85727748]
[1738140831867,4.2767,233.82,233.74,10.57907748]
[1738140832962,10.54907748,233.81,233.74,10.57907748]
[1738140833362,10.54907748,233.81,233.74,0.03]
[1738140833877,4.2771,233.8,233.74,0.03]
[1738140834279,10.54907748,233.79,233.74,0.03]
[1738140836153,14.82647748,233.79,233.74,0.03]
[1738140836659,11.03013165,233.79,233.74,0.03]
[1738140837480,6.75273165,233.79,233.74,0.03]
[1738140837659,6.75273165,233.81,233.74,0.03]
[1738140838181,6.75273165,233.81,233.74,6.78273165]
[1738140838479,4.2767,233.82,233.74,6.78273165]
[1738140839059,6.75273165,233.81,233.74,6.78273165]
[1738140840079,11.02973165,233.81,233.74,11.06083165]
[1738140842189,89.25273165,233.83,233.74,11.06083165]
[1738140842480,93.52933165,233.83,233.74,11.06083165]
[1738140843091,11.02913165,233.85,233.76,6.75273165]
[1738140843291,4.2758,233.87,233.78,6.75273165]
[1738140844388,6.75273165,233.86,233.78,11.03013165]
[1738140847082,11.02873165,233.86,233.78,11.03013165]
[1738140847596,6.75273165,233.83,233.75,11.03073165]
[1738140848295,6.75273165,233.81,233.74,0.03]
[1738140849895,6.75273165,233.81,233.74,4.3082]
[1738140850079,6.75273165,233.83,233.75,6.75273165]
[1738140851377,4.2767,233.82,233.75,6.75273165]
[1738140852391,6.75273165,233.81,233.74,0.03]
[1738140853396,4.2771,233.8,233.74,0.03]
[1738140853773,11.02963165,233.81,233.74,0.03]
[1738140857279,6.75273165,233.77,233.74,0.03]
[1738140857483,11.03043165,233.77,233.74,0.03]
[1738140857685,4.2777,233.77,233.74,0.03]
[1738140858801,4.2775,233.78,233.74,0.03]
[1738140863604,6.75273165,233.77,233.74,0.03]
[1738140864293,11.03043165,233.77,233.74,0.03]
[1738140868005,6.75273165,233.79,233.74,0.03]
[1738140869496,11.03013165,233.79,233.74,0.03]
[1738140872510,6.75273165,233.77,233.74,0.03]
[1738140875117,6.75273165,233.79,233.74,0.03]
[1738140875313,82.5,233.82,233.76,6.75273165]
[1738140875509,93.52953165,233.82,233.74,6.78273165]
[1738140875998,93.52953165,233.82,233.74,0.03]
[1738140876699,6.75273165,233.78,233.74,0.03]
[1738140878620,4.2777,233.77,233.74,0.03]
[1738140879001,4.2774,233.79,233.74,0.03]
[1738140880429,6.75273165,233.84,233.74,0.03]
[1738140880719,4.2762,233.85,233.77,11.03023165]
[1738140880897,11.02873165,233.86,233.77,11.03023165]
[1738140881223,11.02873165,233.86,233.77,6.75273165]
[1738140882516,4.276,233.86,233.79,6.75273165]
[1738140882710,11.09143165,233.88,233.79,8.26183165]
[1738140883019,11.09143165,233.88,233.79,14.66113165]
[1738140883223,11.09143165,233.88,233.81,6.75273165]
[1738140883224,0.063,233.88,233.81,6.75273165]
[1738140884615,4.3387,233.88,233.81,6.75273165]
[1738140885410,11.09143165,233.88,233.81,6.75273165]
[1738140886425,4.3387,233.88,233.81,6.75273165]
[1738140886811,4.3387,233.88,233.81,11.02963165]
[1738140887805,4.3387,233.88,233.81,6.75273165]
[1738140889719,6.75273165,233.83,233.79,7.9084]
[1738140889910,6.75273165,233.81,233.79,1.5091]
[1738140890110,6.75273165,233.81,233.74,8.36173165]
[1738140890728,0.42747945,233.86,233.74,1.609]
[1738140890729,6.75273165,233.79,233.74,1.609]
[1738140891045,6.75273165,233.77,233.74,0.03]
[1738140891727,4.2778,233.76,233.74,0.03]
[1738140893023,6.75273165,233.75,233.74,0.03]
[1738140895439,11.03073165,233.75,233.74,0.03]
[1738140897248,6.75273165,233.75,233.74,0.03]
[1738140899542,11.03073165,233.75,233.74,0.03]
[1738140902154,11.4582111,233.75,233.74,0.03]
[1738140902348,4.70547945,233.75,233.74,0.03]
[1738140905445,4.278,233.75,233.74,0.03]
[1738140906765,6.75273165,233.76,233.74,0.03]
[1738140906944,11.03053165,233.76,233.74,0.03]
[1738140907139,6.75273165,233.76,233.74,0.03]
[1738140908164,4.2778,233.77,233.74,0.03]
[1738140908573,34.1911377,233.76,233.74,0.03]
[1738140908772,4.278,233.75,233.74,0.03]
[1738140912347,6.75273165,233.76,233.74,0.03]
[1738140912550,4.2776,233.78,233.74,0.03]
[1738140913257,11.03033165,233.78,233.74,0.03]
[1738140914578,10.55342103,233.77,233.74,0.03]
[1738140916970,10.55342103,233.79,233.74,0.03]
[1738140918051,10.55342103,233.79,233.74,0.0001]
[1738140918052,21.10684206,233.76,233.74,0.0001]
[1738140918255,0.42747945,233.75,233.74,0.0001]
[1738140918965,24.20436345,233.75,233.74,0.0001]
[1738140920158,28.48236345,233.75,233.74,0.0001]
[1738140920753,33.69688129,233.75,233.74,0.0001]
[1738140922254,33.69688129,233.75,233.69,0.03]
[1738140922255,23.776884,233.71,233.69,0.03]
[1738140922451,34.75778448,233.7,233.69,0.03]
[1738140922863,10.98090048,233.7,233.69,0.03]
[1738140924183,15.25980048,233.7,233.69,0.03]
[1738140925583,39.03668448,233.7,233.69,0.0001]
[1738140926184,1.0,233.65,233.49,10.55342103]
[1738140926481,10.55342103,233.57,233.47,22.90732103]
[1738140927254,10.55342103,233.55,233.47,22.90732103]
[1738140928273,10.55342103,233.57,233.49,10.55342103]
[1738140928868,10.55342103,233.61,233.51,10.55342103]
[1738140929587,10.55342103,233.61,233.53,10.55342103]
[1738140929881,10.55342103,233.63,233.55,10.55342103]
[1738140930273,14.83372103,233.63,233.53,10.55342103]
[1738140931374,10.55342103,233.63,233.54,4.2819]
[1738140931960,14.83372103,233.63,233.53,10.55342103]
[1738140932170,10.55342103,233.61,233.53,10.55342103]
[1738140932559,10.55342103,233.61,233.53,14.83542103]
[1738140933885,4.2808,233.6,233.53,10.55342103]
[1738140934365,4.2808,233.6,233.51,14.83572103]
[1738140934769,14.83402103,233.61,233.51,14.83572103]
[1738140935171,14.83402103,233.61,233.53,0.03]
[1738140937583,14.83402103,233.61,233.53,10.58342103]
[1738140937777,10.55342103,233.61,233.53,10.58342103]
[1738140937965,10.55342103,233.63,233.53,10.58342103]
[1738140938585,6.76267373,233.63,233.54,6.76267373]
[1738140938981,4.2804,233.62,233.54,11.04437373]
[1738140939989,6.76267373,233.63,233.54,11.04437373]
[1738140940168,11.04287373,233.63,233.54,11.04437373]
[1738140951981,6.76267373,233.61,233.53,0.03]
[1738140952187,6.76267373,233.61,233.53,4.3119]
[1738140952482,11.04287373,233.63,233.54,6.76267373]
[1738140953700,11.04257373,233.65,233.56,6.76267373]
[1738140955102,6.76267373,233.63,233.56,6.76267373]
[1738140955280,6.76267373,233.63,233.56,11.04407373]
[1738140956001,11.04257373,233.65,233.56,11.04407373]
[1738140956881,11.04257373,233.65,233.56,6.76267373]
[1738140957704,11.04257373,233.65,233.56,11.04407373]
[1738140959398,6.76267373,233.65,233.58,6.76267373]
[1738140959600,5.0,276.85,233.55,7.5967]
[1738140959601,6.76267373,233.69,233.62,6.76267373]
[1738140959786,6.76267373,233.69,233.55,7.5967]
[1738140959787,6.76267373,233.63,233.55,7.5967]
[1738140959987,6.76267373,233.6,233.53,0.03]
[1738140960192,6.76267373,233.58,233.53,0.03]
[1738140960792,6.76267373,233.6,233.53,0.03]
[1738140961505,11.04357373,233.6,233.53,0.03]
[1738140963106,11.04317373,233.62,233.53,0.03]
[1738140966405,6.76267373,233.6,233.53,0.03]
[1738140967611,4.281,233.59,233.53,0.03]
[1738140969385,11.04347373,233.6,233.53,0.03]
[1738140970810,6.76267373,233.62,233.54,6.76267373]
[1738140971012,6.76267373,233.62,233.56,6.76267373]
[1738140971506,6.76267373,233.62,233.54,6.76267373]
[1738140971816,6.76267373,233.6,233.53,0.03]
[1738140974007,4.281,233.59,233.53,0.03]
[1738140974594,11.04347373,233.6,233.53,0.03]
[1738140978018,6.76267373,233.58,233.53,0.03]
[1738140978195,6.76267373,233.56,233.53,0.03]
[1738140979709,11.04417373,233.56,233.53,0.03]
[1738140980825,6.76267373,233.56,233.53,0.03]
[1738140984011,6.76267373,233.54,233.53,0.03]
[1738140986314,11.04457373,233.54,233.53,0.03]
[1738140989111,34.82145773,233.54,233.53,0.03]
[1738140989626,68.53735265,233.54,233.53,0.03]
[1738140989802,48.24933146,233.54,233.53,0.03]
[1738140990137,6.76267373,233.43,233.37,53.65664415]
[1738140990511,6.76267373,233.43,233.37,57.94164415]
[1738140991140,6.76267373,233.45,233.37,64.70431788]
[1738140991511,6.76267373,233.47,233.37,64.70431788]
[1738140992250,6.76267373,233.45,233.37,64.70431788]
[1738140992605,6.76267373,233.45,233.37,49.20431788]
[1738140993839,6.76267373,233.47,233.39,6.76267373]
[1738140994524,6.76267373,233.47,233.4,4.2844]
[1738140994920,82.5,233.51,233.44,6.76267373]
[1738140995138,6.76267373,233.54,233.47,6.76267373]
[1738140996208,6.76267373,233.56,233.48,4.283]
[1738140996517,6.76267373,233.56,233.49,6.76267373]
[1738140997235,0.063,233.54,233.49,6.76267373]
[1738140998732,0.063,233.54,233.49,11.04537373]
[1738140999447,0.063,233.54,233.5,8.38917373]
[1738140999740,0.063,233.54,233.51,6.76267373]
[1738141000725,0.063,233.54,233.52,6.76267373]
[1738141000923,0.063,233.54,233.53,36.69135773]
[1738141002317,0.063,233.54,233.53,40.97345773]
[1738141003251,6.76267373,233.68,233.61,6.76267373]
[1738141003538,0.063,233.69,233.65,6.76267373]
[1738141003911,0.063,233.69,233.63,6.76267373]
[1738141004525,0.063,233.69,233.64,6.76267373]
[1738141007820,0.063,233.69,233.67,6.76267373]
[1738141008019,0.063,233.69,233.65,6.76267373]
[1738141008235,0.063,233.69,233.64,6.76267373]
[1738141008639,0.063,233.69,233.65,6.76267373]
[1738141010440,11.04117373,233.73,233.7,0.077]
[1738141011239,6.76267373,233.72,233.7,0.077]
[1738141011734,11.04117373,233.73,233.7,0.077]
[1738141013845,6.76267373,233.71,233.7,0.077]
[1738141015155,11.04147373,233.71,233.7,0.077]
[1738141023839,6.76267373,233.71,233.7,0.077]
[1738141024033,11.04147373,233.71,233.7,0.077]
[1738141024233,6.76267373,233.71,233.7,0.077]
[1738141024442,6.76267373,233.73,233.7,0.077]
[1738141024635,4.2783,233.74,233.7,0.077]
[1738141024831,11.04077373,233.75,233.7,0.077]
[1738141026241,6.76267373,233.73,233.7,0.077]
[1738141027032,6.76267373,233.71,233.7,0.077]
[1738141027568,6.76267373,233.73,233.7,0.077]
[1738141027852,6.76267373,233.75,233.7,0.077]
[1738141028442,11.04077373,233.75,233.7,0.077]
[1738141029032,6.76267373,233.74,233.7,0.077]
[1738141029552,11.04077373,233.75,233.7,0.077]
[1738141029735,82.5,233.76,233.7,0.077]